bitfinex/quotes_SOLUSD_20250708
["timestamp","ask_amount","ask_price","bid_price","bid_amount"]
[1751993266196,147.47,150.29,150.28,29.11568341]
[1751993270296,147.47,150.33,150.29,18.64964886]
[1751993270482,7.47752446,150.32,150.31,3.81178915]
[1751993272097,7.47752446,150.32,150.31,10.46470645]
[1751993272307,7.47752446,150.32,150.31,29.11435531]
[1751993272601,7.47752446,150.32,150.31,44.36151191]
[1751993272905,0.06,150.35,150.32,20.28124886]
[1751993273112,7.4748238,150.34,150.33,33.98]
[1751993273408,0.06,150.35,150.34,18.64964886]
[1751993274193,0.06,150.35,150.34,25.30123858]
[1751993274390,0.06,150.35,150.34,29.11302773]
[1751993275087,0.06,150.35,150.34,31.24939696]
[1751993281207,0.06,150.35,150.34,57.24939696]
[1751993281906,1e-08,150.35,150.34,37.1601365]
[1751993282608,0.06,150.43,150.38,18.64964886]
[1751993282914,0.06,150.43,150.42,24.59780724]
[1751993283086,0.06,150.43,150.42,58.55780724]
[1751993285014,0.06,150.43,150.42,65.20585936]
[1751993290107,0.06,150.43,150.42,52.60964886]
[1751993290309,0.06,150.43,150.42,58.55780724]
[1751993290637,0.06,150.43,150.42,39.90815838]
[1751993293106,0.06,150.43,150.42,39.88815838]
[1751993294117,0.06,150.43,150.42,5.94815838]
[1751993294305,0.06,150.43,150.42,39.88815838]
[1751993295226,0.06,150.43,150.42,33.94]
[1751993295533,0.06,150.43,150.41,33.94]
[1751993296626,147.47,150.42,150.41,33.94]
[1751993301599,147.47,150.42,150.41,39.88815838]
[1751993301806,147.47,150.42,150.41,46.53665249]
[1751993302019,147.47,150.42,150.41,65.18630135]
[1751993302507,0.06,150.43,150.42,18.64964886]
[1751993302816,0.06,150.43,150.42,24.59780724]
[1751993303513,1e-08,150.43,150.42,26.84701245]
[1751993303831,1e-08,150.43,150.42,44.04701245]
[1751993304208,1e-08,150.43,150.42,50.69506457]
[1751993305224,1e-08,150.43,150.42,33.49506457]
[1751993305415,1e-08,150.47,150.46,18.64964886]
[1751993305729,1e-08,150.47,150.46,66.74469409]
[1751993306411,1e-08,150.47,150.46,73.39097881]
[1751993307338,1e-08,150.47,150.46,67.44282043]
[1751993308526,1e-08,150.47,150.46,73.39097881]
[1751993312408,0.2,150.51,150.46,129.45541425]
[1751993312714,0.2,150.53,150.52,26.0]
[1751993312933,0.2,150.53,150.52,84.51780724]
[1751993314365,0.2,150.53,150.52,91.16144263]
[1751993315523,0.2,150.53,150.52,85.21328425]
[1751993315837,0.2,150.53,150.52,91.16144263]
[1751993317433,0.2,150.53,150.52,91.14144263]
[1751993317945,0.2,150.53,150.52,57.24144263]
[1751993318239,0.2,150.53,150.52,65.14144263]
[1751993319133,0.2,150.53,150.52,31.24144263]
[1751993319317,0.2,150.53,150.52,65.14144263]
[1751993320334,0.2,150.53,150.52,31.24144263]
[1751993320638,0.2,150.53,150.52,65.14144263]
[1751993322347,0.2,150.53,150.52,58.49780724]
[1751993322536,0.2,150.53,150.52,5.94815838]
[1751993322736,0.2,150.53,150.52,33.9]
[1751993323736,12.79137765,150.53,150.47,25.29523671]
[1751993323941,153.41815838,150.52,150.48,33.9]
[1751993324440,13.33868056,150.51,150.46,12.59426092]
[1751993324639,153.41815838,150.52,150.47,39.84815838]
[1751993324836,7.39079223,150.51,150.47,39.84815838]
[1751993325045,153.41815838,150.52,150.47,39.84815838]
[1751993325247,7.39184032,150.51,150.47,5.94815838]
[1751993325450,14.03601041,150.51,150.48,33.9]
[1751993325632,6.64417009,150.51,150.48,33.9]
[1751993325825,12.59232847,150.51,150.47,5.94815838]
[1751993326142,12.59232847,150.51,150.48,33.9]
[1751993326750,6.64417009,150.51,150.48,33.9]
[1751993326945,12.59232847,150.51,150.48,33.9]
[1751993327327,12.59232847,150.51,150.47,5.94815838]
[1751993327728,12.59232847,150.51,150.48,33.9]
[1751993328848,5.94815838,150.51,150.48,33.9]
[1751993330743,154.11365509,150.52,150.48,33.9]
[1751993330946,5.94815838,150.51,150.49,33.9]
[1751993332361,160.12181347,150.52,150.49,33.9]
[1751993334955,154.11410174,150.51,150.49,33.9]
[1751993335264,153.41815838,150.5,150.47,0.03]
[1751993335437,153.41815838,150.5,150.48,33.9]
[1751993335638,5.94815838,150.49,150.47,0.03]
[1751993335842,153.41815838,150.48,150.47,0.03]
[1751993336166,147.47,150.48,150.47,5.97815838]
[1751993337569,147.47,150.48,150.47,0.03]
[1751993338666,160.06355976,150.48,150.47,0.03]
[1751993339659,147.47,150.48,150.47,0.03]
[1751993341466,147.47,150.48,150.47,5.97815838]
[1751993343369,147.47,150.48,150.47,12.6240014]
[1751993344384,147.47,150.48,150.47,6.67584302]
[1751993344656,147.47,150.48,150.47,12.6240014]
[1751993352946,147.47,150.48,150.47,25.32549188]
[1751993353255,147.47,150.48,150.47,31.27365026]
[1751993354967,147.47,150.48,150.47,25.32549188]
[1751993355158,147.47,150.48,150.47,31.27365026]
[1751993356547,147.47,150.48,150.47,65.15365026]
[1751993362979,147.47,150.48,150.47,0.03]
[1751993363285,147.47,150.48,150.47,33.91]
[1751993363650,147.47,150.48,150.47,40.55584302]
[1751993363850,147.47,150.48,150.47,46.5040014]
[1751993369497,147.47,150.48,150.47,0.03]
[1751993369783,147.47,150.48,150.47,40.55584302]
[1751993370775,147.47,150.48,150.47,46.5040014]
[1751993373297,147.47,150.48,150.47,65.15365026]
[1751993375892,0.06,150.52,150.47,81.76825782]
[1751993376098,0.06,150.52,150.51,5.94815838]
[1751993376278,0.06,150.52,150.51,39.82815838]
[1751993377975,0.06,150.52,150.51,46.47223518]
[1751993379674,0.06,150.52,150.51,33.88]
[1751993379892,7.52157482,150.52,150.51,33.88]
[1751993380179,15.1104332,150.52,150.47,0.03]
[1751993380404,5.94815838,150.5,150.48,33.88]
[1751993380698,7.46157482,150.49,150.48,33.88]
[1751993381397,7.46157482,150.49,150.47,0.03]
[1751993381600,5.94815838,150.5,150.48,33.88]
[1751993381796,7.46402465,150.49,150.48,33.88]
[1751993382407,7.46402465,150.49,150.47,0.03]
[1751993382408,147.47,150.48,150.47,0.03]
[1751993382609,13.41218303,150.48,150.47,0.03]
[1751993382979,7.46402465,150.48,150.47,0.03]
[1751993383289,13.41218303,150.48,150.47,0.03]
[1751993383788,20.05758441,150.48,150.47,0.03]
[1751993384379,46.05758441,150.48,150.47,0.03]
[1751993384611,53.64644279,150.48,150.47,0.03]
[1751993385099,87.52644279,150.48,150.47,0.03]
[1751993385306,87.52644279,150.48,150.41,33.88]
[1751993385486,5.94815838,150.43,150.41,33.88]
[1751993386282,5.94815838,150.42,150.4,33.86]
[1751993387205,5.94815838,150.42,150.38,6.64976635]
[1751993387410,5.94815838,150.4,150.36,12.59873956]
[1751993387706,5.94815838,150.4,150.37,33.88]
[1751993387885,5.94815838,150.42,150.38,39.82815838]
[1751993388079,13.40081668,150.43,150.38,39.82815838]
[1751993388408,5.94815838,150.42,150.38,39.82815838]
[1751993388985,5.94815838,150.42,150.39,6.64937828]
[1751993389228,5.94815838,150.43,150.39,6.64937828]
[1751993389458,5.94815838,150.42,150.39,33.88]
[1751993389888,12.74232559,150.44,150.39,33.88]
[1751993389889,5.94815838,150.43,150.39,33.88]
[1751993390089,147.5,150.41,150.39,33.88]
[1751993390512,147.5,150.41,150.4,5.94815838]
[1751993390813,186.09496342,150.45,150.4,5.94815838]
[1751993391002,186.09496342,150.45,150.41,5.94815838]
[1751993391201,186.09496342,150.45,150.4,12.59709455]
[1751993394110,147.5,150.44,150.4,12.59709455]
[1751993396807,147.5,150.44,150.41,5.94815838]
[1751993397106,147.5,150.44,150.42,5.94815838]
[1751993397497,147.5,150.44,150.42,33.88]
[1751993399215,147.5,150.44,150.42,46.47596562]
[1751993400205,147.5,150.44,150.42,40.52780724]
[1751993400406,147.5,150.44,150.42,46.47596562]
[1751993403028,147.5,150.44,150.43,24.59780724]
[1751993403200,147.5,150.5,150.44,18.64964886]
[1751993403408,7.42783814,150.49,150.47,5.94815838]
[1751993403723,7.42783814,150.49,150.47,39.82815838]
[1751993404024,147.5,150.5,150.47,39.82815838]
[1751993408895,147.5,150.49,150.47,39.82815838]
[1751993410394,147.5,150.49,150.47,46.47394746]
[1751993411120,147.5,150.49,150.47,39.82815838]
[1751993411502,147.5,150.49,150.47,33.88]
[1751993417914,147.5,150.49,150.47,39.82815838]
[1751993418424,147.5,150.49,150.47,46.473934]
[1751993418735,147.5,150.49,150.48,5.94815838]
[1751993420336,147.5,150.49,150.48,12.59355976]
[1751993425533,147.5,150.49,150.48,31.24320862]
[1751993429735,0.06,150.52,150.49,18.64964886]
[1751993429944,0.06,150.52,150.5,39.80815838]
[1751993432247,0.06,150.52,150.51,5.94815838]
[1751993432549,0.06,150.52,150.51,24.59780724]
[1751993433432,0.06,150.52,150.51,31.24188404]
[1751993437835,0.06,150.52,150.51,25.29372566]
[1751993438120,0.06,150.52,150.5,12.59251938]
[1751993438330,0.06,150.52,150.51,33.84]
[1751993440848,0.06,150.52,150.5,12.59251938]
[1751993441045,0.06,150.52,150.51,33.84]
[1751993444938,0.06,150.52,150.49,5.94815838]
[1751993445150,0.06,150.52,150.5,33.84]
[1751993445657,5.94815838,150.51,150.47,18.67964886]
[1751993445862,5.94815838,150.51,150.48,33.84]
[1751993446442,6.00815838,150.52,150.48,39.78815838]
[1751993446668,13.4518961,150.52,150.49,33.84]
[1751993446865,0.06,150.52,150.49,33.84]
[1751993447160,20.09557838,150.52,150.5,33.84]
[1751993447344,147.5,150.51,150.5,33.84]
[1751993450471,160.89844697,150.51,150.5,33.84]
[1751993450766,147.5,150.51,150.5,33.84]
[1751993452660,154.95122229,150.51,150.5,33.84]
[1751993452869,147.5,150.51,150.5,33.84]
[1751993453567,147.5,150.51,150.49,33.84]
[1751993454055,147.5,150.51,150.48,5.94815838]
[1751993454255,147.5,150.51,150.49,33.84]
[1751993455578,147.5,150.51,150.49,39.78815838]
[1751993458267,147.5,150.51,150.49,46.43309798]
[1751993459259,147.5,150.51,150.49,33.84]
[1751993459468,147.5,150.51,150.49,39.78815838]
[1751993460969,147.5,150.51,150.5,5.94815838]
[1751993462561,147.5,150.51,150.5,24.59780724]
[1751993463076,147.5,150.51,150.5,31.24232551]
[1751993463866,147.56,150.51,150.5,31.24232551]
[1751993468086,147.56,150.51,150.5,12.59267665]
[1751993468257,147.56,150.51,150.49,46.43296623]
[1751993468585,147.56,150.51,150.5,33.82]
[1751993468881,147.56,150.51,150.5,39.76815838]
[1751993470678,147.56,150.51,150.5,46.41267665]
[1751993476182,147.56,150.51,150.5,40.46451827]
[1751993476361,147.56,150.51,150.5,46.41267665]
[1751993476882,147.56,150.51,150.5,44.26549341]
[1751993488194,147.56,150.51,150.5,40.46451827]
[1751993488399,147.56,150.51,150.5,44.26549341]
[1751993498191,147.56,150.51,150.5,40.46451827]
[1751993498697,147.56,150.51,150.5,44.26549341]
[1751993507094,0.06,150.52,150.5,62.91514227]
[1751993507414,0.06,150.52,150.51,3.80097514]
[1751993508091,0.2,150.53,150.52,44.64964886]
[1751993508286,0.2,150.58,150.52,82.250624]
[1751993508501,0.2,150.58,150.57,3.80097514]
[1751993508692,7.66400092,150.58,150.57,37.60097514]
[1751993509396,0.2,150.58,150.57,44.24240437]
[1751993511510,0.2,150.58,150.57,40.44142923]
[1751993511719,0.2,150.58,150.57,44.24240437]
[1751993516824,0.2,150.58,150.57,62.89205323]
[1751993522524,0.2,150.58,150.55,6.64231152]
[1751993522737,0.2,150.58,150.57,3.80097514]
[1751993523423,0.2,150.58,150.57,44.22240437]
[1751993524230,0.2,150.58,150.57,62.87205323]
[1751993530437,0.2,150.59,150.57,62.87205323]
[1751993530736,0.2,150.59,150.58,3.80097514]
[1751993531036,0.2,150.59,150.58,37.56097514]
[1751993531215,0.2,150.59,150.58,33.76]
[1751993531620,0.2,150.59,150.58,37.56097514]
[1751993532920,0.2,150.59,150.56,10.442824]
[1751993533120,0.2,150.59,150.57,37.56097514]
[1751993533721,0.2,150.59,150.57,33.76]
[1751993533922,0.2,150.59,150.57,37.56097514]
[1751993534834,0.2,150.59,150.57,3.80097514]
[1751993535341,0.2,150.59,150.58,33.76]
[1751993536428,0.2,150.59,150.58,37.56097514]
[1751993538215,0.2,150.59,150.58,44.20196331]
[1751993539115,0.2,150.59,150.58,40.40098817]
[1751993539315,0.2,150.59,150.58,46.33299135]
[1751993540628,0.2,150.59,150.58,39.69200318]
[1751993542233,0.2,150.59,150.58,46.33299135]
[1751993543237,0.2,150.59,150.58,33.76]
[1751993543538,0.2,150.59,150.58,39.69200318]
[1751993545919,0.2,150.59,150.58,46.33299135]
[1751993546528,0.2,150.59,150.58,40.40098817]
[1751993546842,0.2,150.59,150.58,39.69200318]
[1751993547846,0.2,150.59,150.58,33.76]
[1751993548039,7.6501152,150.59,150.58,33.76]
[1751993548222,7.65036161,150.59,150.58,33.76]
[1751993549046,7.65036161,150.59,150.57,5.93200318]
[1751993549255,0.2,150.59,150.58,33.76]
[1751993549422,7.65318234,150.59,150.58,33.76]
[1751993551229,7.65318234,150.59,150.56,5.93200318]
[1751993551466,7.45318234,150.58,150.57,33.76]
[1751993551749,7.45318234,150.58,150.56,5.93200318]
[1751993552043,0.2,150.59,150.57,39.69200318]
[1751993552350,7.46575105,150.58,150.57,33.76]
[1751993553261,7.46575105,150.58,150.57,40.40142923]
[1751993553426,7.46575105,150.58,150.57,46.33343241]
[1751993554459,7.46575105,150.58,150.57,40.40142923]
[1751993554624,7.46575105,150.58,150.57,46.33343241]
[1751993554823,0.2,150.59,150.57,46.33343241]
[1751993556348,0.2,150.59,150.58,5.93200318]
[1751993556552,7.66656535,150.59,150.58,5.93200318]
[1751993556926,7.66656535,150.59,150.58,12.57299135]
[1751993558858,7.66656535,150.59,150.58,5.93200318]
[1751993560547,7.66656535,150.59,150.58,12.57299135]
[1751993560863,7.66656535,150.59,150.58,3.79687908]
[1751993563067,7.66656535,150.59,150.58,10.43786725]
[1751993565150,0.2,150.59,150.58,29.08751611]
[1751993565961,0.2,150.59,150.58,25.29063703]
[1751993566170,0.2,150.59,150.58,29.08751611]
[1751993569370,1e-08,150.62,150.61,51.28931422]
[1751993569608,1e-08,150.62,150.61,88.8461933]
[1751993570935,1e-08,150.62,150.61,90.9759013]
[1751993571139,1e-08,150.62,150.61,85.04931422]
[1751993571375,1e-08,150.62,150.61,90.9759013]
[1751993571842,1e-08,150.62,150.61,85.04931422]
[1751993572048,1e-08,150.62,150.61,57.2159013]
[1751993572370,1e-08,150.62,150.61,90.9559013]
[1751993572766,1e-08,150.62,150.61,46.30625244]
[1751993573155,1e-08,150.62,150.6,12.56649506]
[1751993573368,1e-08,150.62,150.61,39.66658708]
[1751993577129,1e-08,150.62,150.61,33.74]
[1751993577657,1e-08,150.62,150.61,39.66658708]
[1751993577858,1e-08,150.62,150.61,46.30625244]
[1751993579554,1e-08,150.62,150.61,39.66658708]
[1751993580570,1e-08,150.62,150.61,33.74]
[1751993580979,1e-08,150.62,150.61,39.66658708]
[1751993582157,1e-08,150.62,150.61,33.74]
[1751993582583,1e-08,150.62,150.6,5.92658708]
[1751993582760,1e-08,150.62,150.61,33.74]
[1751993586489,147.50000001,150.62,150.61,33.74]
[1751993588274,154.9497031,150.62,150.61,33.74]
[1751993588792,154.9497031,150.62,150.59,5.92658708]
[1751993589104,147.50000001,150.62,150.6,33.74]
[1751993591378,147.50000001,150.62,150.61,33.74]
[1751993591579,154.9511205,150.62,150.59,5.92658708]
[1751993591805,7.45112049,150.61,150.6,33.74]
[1751993592124,147.50000001,150.62,150.6,33.74]
[1751993593676,147.50000001,150.62,150.59,12.56713125]
[1751993593879,147.50000001,150.62,150.6,33.74]
[1751993594206,13.37875599,150.61,150.58,0.03]
[1751993594488,7.45216891,150.6,150.58,33.77]
[1751993594701,147.5,150.59,150.58,33.77]
[1751993596286,147.5,150.59,150.58,12.59757525]
[1751993596487,147.5,150.59,150.58,39.69658708]
[1751993596990,147.5,150.59,150.58,33.77]
[1751993597677,147.5,150.59,150.58,39.69658708]
[1751993598397,147.5,150.59,150.58,64.98722411]
[1751993598608,1e-08,150.62,150.59,18.64964886]
[1751993598785,1e-08,150.62,150.61,5.92658708]
[1751993599372,7.4535519,150.62,150.61,5.92658708]
[1751993599803,7.4535519,150.62,150.61,12.56625244]
[1751993601705,1e-08,150.62,150.61,12.56625244]
[1751993601889,1e-08,150.62,150.61,5.92658708]
[1751993603983,7.45504313,150.62,150.61,5.92658708]
[1751993606579,7.45504313,150.62,150.59,18.64964886]
[1751993606580,7.45504313,150.62,150.58,0.03]
[1751993606781,13.3816302,150.61,150.59,33.74]
[1751993606994,7.45504312,150.6,150.59,33.74]
[1751993607402,1e-08,150.62,150.59,39.66658708]
[1751993607581,7.45772709,150.61,150.59,39.66658708]
[1751993607792,1e-08,150.62,150.59,39.66658708]
[1751993607977,1e-08,150.62,150.59,33.74]
[1751993608182,7.4575812,150.61,150.6,33.74]
[1751993609099,7.4575812,150.61,150.58,5.95658708]
[1751993609298,7.4575812,150.6,150.59,33.74]
[1751993609494,7.4575812,150.6,150.58,0.03]
[1751993609713,154.9575812,150.59,150.58,0.03]
[1751993609891,154.9575812,150.59,150.58,33.77]
[1751993611714,154.9575812,150.59,150.58,0.03]
[1751993613098,7.4575812,150.59,150.58,0.03]
[1751993614993,5.92658709,150.62,150.58,5.95658708]
[1751993615193,7.45335106,150.61,150.59,39.66658708]
[1751993615391,1e-08,150.62,150.59,39.66658708]
[1751993615593,1e-08,150.62,150.59,33.74]
[1751993615813,7.45361207,150.61,150.59,33.74]
[1751993616006,1e-08,150.62,150.59,33.74]
[1751993616211,7.45347174,150.61,150.59,39.66658708]
[1751993616410,1e-08,150.62,150.59,39.66658708]
[1751993616590,7.455475,150.61,150.59,33.74]
[1751993616915,5.92658708,150.61,150.59,33.74]
[1751993617296,7.45689457,150.6,150.59,33.74]
[1751993617496,13.38348165,150.6,150.59,33.74]
[1751993618011,13.38348165,150.6,150.58,0.03]
[1751993618215,13.38348165,150.59,150.58,0.03]
[1751993618416,7.45689457,150.59,150.58,0.03]
[1751993619116,20.02402883,150.59,150.58,0.03]
[1751993620320,7.45689457,150.59,150.58,0.03]
[1751993620503,20.02402883,150.59,150.58,0.03]
[1751993621415,13.38348165,150.59,150.58,0.03]
[1751993622096,20.02402883,150.59,150.58,0.03]
[1751993624918,20.02125591,150.59,150.58,0.03]
[1751993627910,154.11170475,150.57,150.53,0.03]
[1751993628225,160.85070873,150.56,150.53,0.03]
[1751993628423,153.39658708,150.56,150.53,0.03]
[1751993629647,147.47,150.56,150.53,5.95658708]
[1751993630122,153.39658708,150.56,150.53,0.03]
[1751993632530,153.39658708,150.56,150.54,5.92658708]
[1751993632531,147.47,150.56,150.54,5.92658708]
[1751993633316,147.47,150.56,150.53,0.03]
[1751993633521,147.47,150.56,150.54,5.92658708]
[1751993634634,147.47,150.56,150.53,0.03]
[1751993634838,5.92658708,150.55,150.53,0.03]
[1751993635026,147.47,150.54,150.53,0.03]
[1751993636143,153.39658708,150.54,150.53,0.03]
[1751993637626,147.47,150.54,150.53,0.03]
[1751993639519,153.39658708,150.54,150.53,0.03]
[1751993639720,5.92658708,150.54,150.53,0.03]
[1751993640530,26.0,150.58,150.53,0.03]
[1751993640721,26.0,150.58,150.54,6.64275275]
[1751993640722,13.36723251,150.57,150.54,6.64275275]
[1751993642340,5.92658708,150.57,150.54,6.64275275]
[1751993642845,13.36605517,150.58,150.54,12.56933983]
[1751993644960,20.00711141,150.58,150.54,12.56933983]
[1751993645134,12.56764332,150.58,150.54,12.56933983]
[1751993645525,5.92658708,150.57,150.54,6.64275275]
[1751993645847,147.5,150.56,150.54,6.64275275]
[1751993646034,147.5,150.56,150.54,12.56933983]
[1751993649752,147.5,150.56,150.53,12.59965529]
[1751993651640,147.5,150.55,150.53,12.59965529]
[1751993657761,147.5,150.55,150.53,6.67306821]
[1751993657938,147.5,150.55,150.53,12.59965529]
[1751993661559,147.5,150.55,150.54,33.74]
[1751993662667,154.96540051,150.55,150.54,33.74]
[1751993663168,154.96540051,150.55,150.54,39.66658708]
[1751993664267,147.5,150.55,150.54,39.66658708]
[1751993664564,154.96770099,150.55,150.54,39.66658708]
[1751993665465,154.96770099,150.55,150.54,46.30933983]
[1751993668858,154.96770099,150.55,150.54,33.74]
[1751993670277,154.96770099,150.55,150.54,40.38275275]
[1751993670573,154.96770099,150.55,150.54,46.30933983]
[1751993670770,147.5,150.55,150.54,64.95898869]
[1751993670976,147.56,150.59,150.55,18.64964886]
[1751993671175,7.46965274,150.58,150.56,33.74]
[1751993671481,7.46965274,150.57,150.56,33.74]
[1751993672362,7.46965274,150.57,150.56,46.30845743]
[1751993675659,147.56,150.59,150.56,46.30845743]
[1751993675882,7.46580185,150.58,150.57,5.92658708]
[1751993676877,7.46580185,150.58,150.57,12.56801631]
[1751993677383,147.56,150.59,150.57,12.56801631]
[1751993677684,147.56,150.59,150.58,39.66658708]
[1751993677879,155.02311361,150.59,150.58,39.66658708]
[1751993678482,155.02311361,150.59,150.58,46.30757525]
[1751993679282,155.02311361,150.59,150.58,40.38098817]
[1751993679459,155.02311361,150.59,150.58,46.30757525]
[1751993685283,155.02311361,150.59,150.58,39.66658708]
[1751993690799,155.02311361,150.59,150.58,37.53703482]
[1751993692890,147.56,150.59,150.58,44.17802299]
[1751993698289,0.06,150.59,150.58,64.49287185]
[1751993700472,1e-08,150.62,150.58,81.09534229]
[1751993700692,1e-08,150.62,150.61,22.44668368]
[1751993700895,1e-08,150.62,150.61,56.16668368]
[1751993701094,1e-08,150.62,150.61,58.29701779]
[1751993701692,1e-08,150.62,150.61,64.93668315]
[1751993702699,1e-08,150.62,150.61,70.86405208]
[1751993704100,1e-08,150.62,150.61,64.93668315]
[1751993706500,1e-08,150.62,150.61,70.86405208]
[1751993709300,1e-08,150.62,150.61,72.51845208]
[1751993715207,1e-08,150.62,150.61,66.59108315]
[1751993715414,1e-08,150.62,150.61,32.87108315]
[1751993715710,1e-08,150.62,150.61,66.57108315]
[1751993716009,1e-08,150.62,150.61,32.87108315]
[1751993716310,1e-08,150.62,150.61,66.57108315]
[1751993716512,1e-08,150.62,150.61,57.21668315]
[1751993717101,1e-08,150.62,150.61,90.91668315]
[1751993717304,1e-08,150.62,150.61,5.92736893]
[1751993717805,1e-08,150.62,150.61,46.26703429]
[1751993719411,1e-08,150.62,150.61,40.33966536]
[1751993719739,1e-08,150.62,150.61,46.26703429]
[1751993724494,1e-08,150.62,150.61,39.62736893]
[1751993725210,1e-08,150.62,150.61,33.7]
[1751993726410,1e-08,150.62,150.61,39.62736893]
[1751993729830,1e-08,150.62,150.61,46.26703429]
[1751993730533,1e-08,150.62,150.61,64.91668315]
[1751993730822,1e-08,150.62,150.61,90.91668315]
[1751993731299,1e-08,150.62,150.61,70.84405208]
[1751993733526,1e-08,150.62,150.61,58.98931422]
[1751993733741,1e-08,150.62,150.59,0.03]
[1751993733948,1e-08,150.62,150.59,5.95736893]
[1751993734242,1e-08,150.62,150.6,39.66736893]
[1751993734440,1e-08,150.62,150.6,33.74]
[1751993735114,1e-08,150.62,150.61,33.74]
[1751993735319,7.436651,150.62,150.61,33.74]
[1751993735627,147.5,150.61,150.59,33.77]
[1751993735829,153.42736893,150.61,150.59,33.77]
[1751993737113,153.42736893,150.61,150.59,33.79]
[1751993737312,7.43903401,150.6,150.59,33.79]
[1751993738029,147.5,150.61,150.59,33.79]
[1751993738212,147.5,150.61,150.59,46.35780634]
[1751993738831,147.5,150.61,150.6,5.92736893]
[1751993739019,147.5,150.61,150.6,24.57701779]
[1751993739214,147.5,150.61,150.6,31.21712403]
[1751993739606,1e-08,150.62,150.61,18.64964886]
[1751993739805,1e-08,150.62,150.61,58.35701779]
[1751993741508,1e-08,150.62,150.61,64.99668315]
[1751993752055,1e-08,150.62,150.61,64.97668315]
[1751993752286,1e-08,150.62,150.61,31.21668315]
[1751993752430,1e-08,150.62,150.6,6.64000402]
[1751993752762,1e-08,150.62,150.61,33.78]
[1751993752763,147.50000001,150.62,150.61,33.78]
[1751993752936,147.50000001,150.62,150.59,5.95736893]
[1751993753137,160.06663336,150.62,150.6,33.82]
[1751993753341,13.36737249,150.61,150.59,0.03]
[1751993753573,153.42736894,150.62,150.59,33.85]
[1751993753739,7.440289,150.61,150.59,33.85]
[1751993753945,147.50000001,150.62,150.6,5.92736893]
[1751993754182,147.50000001,150.62,150.59,33.85]
[1751993754340,147.50000001,150.62,150.59,39.77736893]
[1751993754753,147.50000001,150.62,150.59,33.85]
[1751993754976,147.50000001,150.62,150.59,39.77736893]
[1751993755179,147.50000001,150.62,150.6,5.92736893]
[1751993755341,147.50000001,150.62,150.61,33.82]
[1751993755547,154.9397963,150.62,150.61,33.82]
[1751993755971,160.86716523,150.62,150.59,0.03]
[1751993756160,5.92736893,150.6,150.59,33.87]
[1751993756755,5.92736893,150.6,150.59,0.03]
[1751993757252,20.00713739,150.6,150.59,0.03]
[1751993758487,46.00713739,150.6,150.59,0.03]
[1751993760672,7.43966222,150.6,150.59,0.03]
[1751993761046,5.92736893,150.61,150.59,0.03]
[1751993761252,5.92736893,150.6,150.59,0.03]
[1751993761470,13.36378198,150.6,150.59,0.03]
[1751993762480,7.43641305,150.6,150.59,0.03]
[1751993762776,5.92736893,150.61,150.59,0.03]
[1751993762951,13.36265883,150.61,150.59,0.03]
[1751993763280,7.4352899,150.61,150.59,0.03]
[1751993763580,1e-08,150.62,150.6,5.92736893]
[1751993763760,7.43370607,150.62,150.6,5.92736893]
[1751993763960,7.43370607,150.62,150.59,0.03]
[1751993764161,1e-08,150.62,150.6,5.92736893]
[1751993764560,1e-08,150.62,150.59,5.95736893]
[1751993764767,14.07259988,150.62,150.59,0.03]
[1751993764966,5.92736893,150.61,150.59,0.03]
[1751993765168,6.63926972,150.62,150.59,0.03]
[1751993765369,5.92736893,150.61,150.59,0.03]
[1751993765695,7.43338211,150.61,150.59,0.03]
[1751993766958,147.5,150.61,150.59,0.03]
[1751993767885,147.5,150.61,150.6,5.92736893]
[1751993768482,147.5,150.61,150.59,0.03]